fUSD/lending_fUSD_20250823
["ID","MTS","AMOUNT","RATE_DAILY","PERIOD"]
[380952767,1755912700988,-431.63617727,0.00014794,2]
[380952768,1755912700997,-400.0,0.00014794,2]
[380952769,1755912701006,-400.0,0.00014794,2]
[380952770,1755912701015,-464.48,0.00014794,2]
[380952771,1755912701024,-400.0,0.00014794,2]
[380952772,1755912701034,-400.0,0.00014794,2]
[380952773,1755912701043,-400.0,0.00014794,2]
[380952774,1755912701051,-415.36,0.00014794,2]
[380952775,1755912701061,-328.92118751,0.00014794,2]
[380952776,1755912701071,-530.98,0.00014794,2]
[380952777,1755912701079,-400.0,0.00014794,2]
[380952778,1755912701089,-533.06000932,0.00014794,2]
[380952779,1755912701098,-512.43,0.00014794,2]
[380952780,1755912701107,-400.0,0.00014794,2]
[380952781,1755912701117,-516.79,0.00014794,2]
[380952782,1755912701126,-400.0,0.00014794,2]
[380952783,1755912701135,-400.0,0.00014794,2]
[380952784,1755912701144,-400.0,0.00014794,2]
[380952785,1755912701154,-400.0,0.00014794,2]
[380952786,1755912701163,-400.0,0.00014794,2]
[380952787,1755912701176,-409.44,0.00014794,2]
[380952788,1755912701186,-400.0,0.00014794,2]
[380952789,1755912701195,-400.0,0.00014794,2]
[380952790,1755912701204,-400.0,0.00014794,2]
[380952791,1755912701214,-499.57,0.00014794,2]
[380952792,1755912701224,-400.0,0.00014794,2]
[380952793,1755912701234,-476.9,0.00014794,2]
[380952794,1755912701243,-400.0,0.00014794,2]
[380952795,1755912701253,-577.94,0.00014794,2]
[380952796,1755912701262,-400.0,0.00014794,2]
[380952797,1755912701272,-400.0,0.00014794,2]
[380952798,1755912701281,-637.7,0.00014794,2]
[380952799,1755912701290,-423.83,0.00014794,2]
[380952800,1755912701300,-400.0,0.00014794,2]
[380952801,1755912701309,-873.47,0.00014794,2]
[380952802,1755912701319,-459.29,0.00014794,2]
[380952803,1755912701329,-571.62,0.00014794,2]
[380952804,1755912701338,-409.95,0.00014794,2]
[380952805,1755912701347,-549.98,0.00014794,2]
[380952806,1755912701357,-400.0,0.00014794,2]
[380952807,1755912701369,-1704.41,0.00014794,2]
[380952808,1755912701382,-400.0,0.00014794,2]
[380952809,1755912701391,-400.0,0.00014794,2]
[380952810,1755912701401,-400.0,0.00014794,2]
[380952811,1755912701412,-400.0,0.00014794,2]
[380952812,1755912701421,-425.0249252,0.00014794,2]
[380952813,1755912701430,-531.47,0.00014794,2]
[380952814,1755912701441,-456.18,0.00014794,2]
[380952815,1755912701450,-400.0,0.00014794,2]
[380952816,1755912701461,-400.0,0.00014794,2]
[380952817,1755912701470,-338.2686047,0.00014794,2]
[380952818,1755912701479,-400.0,0.00014794,2]
[380952819,1755912701489,-890.29,0.00014794,2]
[380952820,1755912701498,-406.1,0.00014794,2]
[380952821,1755912701507,-400.0,0.00014794,2]
[380952822,1755912701517,-400.0,0.00014794,2]
[380952823,1755912701526,-400.0,0.00014794,2]
[380952824,1755912701535,-400.0,0.00014794,2]
[380952825,1755912701545,-421.32,0.00014794,2]
[380952826,1755912701555,-400.0,0.00014794,2]
[380952827,1755912701564,-478.43,0.00014794,2]
[380952828,1755912701574,-400.0,0.00014794,2]
[380952829,1755912701583,-487.04,0.00014794,2]
[380952830,1755912701592,-595.85,0.00014794,2]
[380952831,1755912701602,-400.0,0.00014794,2]
[380952832,1755912701611,-510.81,0.00014794,2]
[380952833,1755912701620,-542.43,0.00014794,2]
[380952834,1755912701630,-451.04,0.00014794,2]
[380952835,1755912701639,-400.0,0.00014794,2]
[380952836,1755912701649,-477.02,0.00014794,2]
[380952837,1755912701658,-667.8,0.00014794,2]
[380952838,1755912701668,-400.0,0.00014794,2]
[380952839,1755912701677,-400.0,0.00014794,2]
[380952840,1755912701686,-754.76,0.00014794,2]
[380952841,1755912701696,-400.0,0.00014794,2]
[380952842,1755912701705,-151.0,0.00014794,2]
[380952843,1755912701715,-1030.1,0.00014794,2]
[380952844,1755912701724,-510.89,0.00014794,2]
[380952845,1755912701734,-400.0,0.00014794,2]
[380952846,1755912701744,-436.99,0.00014794,2]
[380952847,1755912701754,-657.25,0.00014794,2]
[380952848,1755912701763,-400.0,0.00014794,2]
[380952849,1755912701773,-400.0,0.00014794,2]
[380952850,1755912701782,-400.0,0.00014794,2]
[380952851,1755912701792,-417.45,0.00014794,2]
[380952852,1755912701801,-400.0,0.00014794,2]
[380952853,1755912701810,-400.0,0.00014794,2]
[380952854,1755912701820,-1067.81,0.00014794,2]
[380952855,1755912701829,-400.0,0.00014794,2]
[380952856,1755912701839,-400.0,0.00014794,2]
[380952857,1755912701848,-400.0,0.00014794,2]
[380952858,1755912701858,-786.01,0.00014794,2]
[380952859,1755912701867,-578.42,0.00014794,2]
[380952860,1755912701877,-400.0,0.00014794,2]
[380952861,1755912701886,-1145.67,0.00014794,2]
[380952862,1755912701896,-624.95,0.00014794,2]
[380952863,1755912701905,-400.0,0.00014794,2]
[380952864,1755912701914,-400.0,0.00014794,2]
[380952865,1755912701924,-439.98,0.00014794,2]
[380952866,1755912701933,-400.0,0.00014794,2]
[380952867,1755912701943,-734.24,0.00014794,2]
[380952868,1755912701953,-400.0,0.00014794,2]
[380952869,1755912701962,-716.27,0.00014794,2]
[380952870,1755912701972,-400.0,0.00014794,2]
[380952871,1755912701981,-400.0,0.00014794,2]
[380952872,1755912701992,-677.21,0.00014794,2]
[380952873,1755912702002,-400.0,0.00014794,2]
[380952874,1755912702011,-400.0,0.00014794,2]
[380952875,1755912702020,-400.0,0.00014794,2]
[380952876,1755912702030,-503.77,0.00014794,2]
[380952877,1755912702039,-400.0,0.00014794,2]
[380952878,1755912702049,-831.56,0.00014794,2]
[380952879,1755912702058,-651.98,0.00014794,2]
[380952880,1755912702068,-742.35,0.00014794,2]
[380952881,1755912702077,-541.87,0.00014794,2]
[380952882,1755912702086,-400.0,0.00014794,2]
[380952883,1755912702095,-400.0,0.00014794,2]
[380952884,1755912702105,-462.17,0.00014794,2]
[380952885,1755912702114,-400.0,0.00014794,2]
[380952886,1755912702124,-400.0,0.00014794,2]
[380952887,1755912702133,-422.39,0.00014794,2]
[380952888,1755912702142,-400.0,0.00014794,2]
[380952889,1755912702152,-535.7,0.00014794,2]
[380952890,1755912702161,-400.0,0.00014794,2]
[380952891,1755912702171,-601.7,0.00014794,2]
[380952892,1755912702181,-598.88,0.00014794,2]
[380952893,1755912702191,-400.0,0.00014794,2]
[380952894,1755912702201,-729.0,0.00014794,2]
[380952895,1755912702210,-400.0,0.00014794,2]
[380952896,1755912702220,-560.98,0.00014794,2]
[380952897,1755912702230,-400.0,0.00014794,2]
[380952898,1755912702240,-482.06,0.00014794,2]
[380952899,1755912702250,-648.16,0.00014794,2]
[380952900,1755912702259,-151.0,0.00014794,2]
[380952901,1755912702269,-400.0,0.00014794,2]
[380952902,1755912702278,-485.12,0.00014794,2]
[380952903,1755912702287,-581.45,0.00014794,2]
[380952904,1755912702296,-400.0,0.00014794,2]
[380952905,1755912702306,-463.13,0.00014794,2]
[380952906,1755912702315,-607.66,0.00014794,2]
[380952907,1755912702325,-400.0,0.00014794,2]
[380952908,1755912702334,-400.0,0.00014794,2]
[380952909,1755912702344,-483.72,0.00014794,2]
[380952910,1755912702354,-506.32,0.00014794,2]
[380952911,1755912702363,-202.09664433,0.00014794,2]
[380952912,1755912702376,-657.0,0.00014794,2]
[380952913,1755912702385,-460.21,0.00014794,2]
[380952914,1755912702395,-664.59,0.00014794,2]
[380952915,1755912702405,-400.0,0.00014794,2]
[380952916,1755912702415,-518.18,0.00014794,2]
[380952917,1755912702424,-548.04,0.00014794,2]
[380952918,1755912702434,-400.0,0.00014794,2]
[380952919,1755912702447,-538.71,0.00014794,2]
[380952920,1755912702456,-623.23,0.00014794,2]
[380952921,1755912702465,-490.94,0.00014794,2]
[380952922,1755912702475,-400.0,0.00014794,2]
[380952923,1755912702484,-407.86,0.00014794,2]
[380952924,1755912702494,-492.11,0.00014794,2]
[380952925,1755912702504,-585.32,0.00014794,2]
[380952926,1755912702513,-704.8,0.00014794,2]
[380952927,1755912702522,-400.0,0.00014794,2]
[380952928,1755912702532,-419.51,0.00014794,2]
[380952929,1755912702541,-536.25,0.00014794,2]
[380952930,1755912702551,-400.0,0.00014794,2]
[380952931,1755912702560,-416.08,0.00014794,2]
[380952932,1755912702569,-400.0,0.00014794,2]
[380952933,1755912702578,-400.0,0.00014794,2]
[380952934,1755912702587,-552.15,0.00014794,2]
[380952935,1755912702597,-151.0,0.00014794,2]
[380952936,1755912702606,-685.75,0.00014794,2]
[380952937,1755912702615,-400.0,0.00014794,2]
[380952938,1755912702624,-151.0,0.00014794,2]
[380952939,1755912702633,-151.0,0.00014794,2]
[380952940,1755912702642,-400.0,0.00014794,2]
[380952941,1755912702652,-1265.94,0.00014794,2]
[380952942,1755912702661,-475.58,0.00014794,2]
[380952943,1755912702670,-400.0,0.00014794,2]
[380952944,1755912702679,-400.0,0.00014794,2]
[380952945,1755912702690,-151.0,0.00014794,2]
[380952946,1755912702700,-433.85,0.00014794,2]
[380952947,1755912702709,-244.627955,0.00014794,2]
[380952948,1755912702719,-400.0,0.00014794,2]
[380952949,1755912702728,-400.0,0.00014794,2]
[380952950,1755912702737,-400.0,0.00014794,2]
[380952951,1755912702747,-151.0,0.00014794,2]
[380952952,1755912702757,-400.0,0.00014794,2]
[380952953,1755912702767,-400.0,0.00014794,2]
[380952954,1755912702776,-400.0,0.00014794,2]
[380952955,1755912702786,-428.36,0.00014794,2]
[380952956,1755912702795,-543.91,0.00014794,2]
[380952957,1755912702805,-427.61,0.00014794,2]
[380952958,1755912702814,-1000.0,0.00014794,2]
[380952959,1755912702824,-400.0,0.00014794,2]
[380952960,1755912702833,-400.0,0.00014794,2]
[380952961,1755912702842,-246.474626,0.00014794,2]
[380952962,1755912702851,-400.0,0.00014794,2]
[380952963,1755912702861,-763.66,0.00014794,2]
[380952964,1755912702870,-400.0,0.00014794,2]
[380952965,1755912702879,-151.0,0.00014794,2]
[380952966,1755912702887,-400.0,0.00014794,2]
[380952967,1755912702897,-400.0,0.00014794,2]
[380952968,1755912702906,-482.08,0.00014794,2]
[380952969,1755912702915,-552.38,0.00014794,2]
[380952970,1755912702924,-400.0,0.00014794,2]
[380952971,1755912702933,-793.95,0.00014794,2]
[380952972,1755912702948,-400.0,0.00014794,2]
[380952973,1755912702958,-400.0,0.00014794,2]
[380952974,1755912702967,-400.0,0.00014794,2]
[380952975,1755912702977,-476.99,0.00014794,2]
[380952976,1755912702986,-400.0,0.00014794,2]
[380952977,1755912702995,-400.0,0.00014794,2]
[380952978,1755912703004,-400.0,0.00014794,2]
[380952979,1755912703014,-400.0,0.00014794,2]
[380952980,1755912703023,-151.0,0.00014794,2]
[380952981,1755912703032,-400.0,0.00014794,2]
[380952982,1755912703041,-772.08,0.00014794,2]
[380952983,1755912703051,-607.86,0.00014794,2]
[380952984,1755912703060,-400.0,0.00014794,2]
[380952985,1755912703070,-577.68,0.00014794,2]
[380952986,1755912703079,-159.758689,0.00014794,2]
[380952987,1755912703088,-446.17,0.00014794,2]
[380952988,1755912703097,-499.75,0.00014794,2]
[380952989,1755912703107,-151.0,0.00014794,2]
[380952990,1755912703116,-543.86,0.00014794,2]
[380952991,1755912703125,-707.33,0.00014794,2]
[380952992,1755912703134,-216.679076,0.00014794,2]
[380952993,1755912703143,-203.996606,0.00014794,2]
[380952994,1755912703152,-752.86,0.00014794,2]
[380952995,1755912703161,-156.17461,0.00014794,2]
[380952996,1755912703171,-475.34,0.00014794,2]
[380952997,1755912703180,-151.0,0.00014794,2]
[380952998,1755912703192,-400.0,0.00014794,2]
[380952999,1755912703202,-602.1,0.00014794,2]
[380953000,1755912703211,-496.62,0.00014794,2]
[380953001,1755912703221,-480.32,0.00014794,2]
[380953002,1755912703230,-400.0,0.00014794,2]
[380953003,1755912703239,-400.0,0.00014794,2]
[380953004,1755912703248,-400.0,0.00014794,2]
[380953005,1755912703257,-400.0,0.00014794,2]
[380953006,1755912703267,-633.62,0.00014794,2]
[380953007,1755912703276,-400.0,0.00014794,2]
[380953008,1755912703285,-400.0,0.00014794,2]
[380953009,1755912703295,-400.0,0.00014794,2]
[380953010,1755912703304,-400.0,0.00014794,2]
[380953011,1755912703313,-400.0,0.00014794,2]
[380953012,1755912703323,-560.58,0.00014794,2]
[380953013,1755912703332,-614.22,0.00014794,2]
[380953014,1755912703342,-400.0,0.00014794,2]
[380953015,1755912703351,-428.79,0.00014794,2]
[380953016,1755912703362,-416.01,0.00014794,2]
[380953017,1755912703375,-400.0,0.00014794,2]
[380953018,1755912703385,-400.0,0.00014794,2]
[380953019,1755912703394,-400.0,0.00014794,2]
[380953020,1755912703404,-425.3,0.00014794,2]
[380953021,1755912703414,-400.0,0.00014794,2]
[380953022,1755912703423,-508.68,0.00014794,2]
[380953023,1755912703433,-400.0,0.00014794,2]
[380953024,1755912703444,-535.36,0.00014794,2]
[380953025,1755912703453,-193.17723,0.00014794,2]
[380953026,1755912703463,-400.0,0.00014794,2]
[380953027,1755912703472,-470.91,0.00014794,2]
[380953028,1755912703482,-418.5,0.00014794,2]
[380953029,1755912703491,-155.05,0.00014794,2]
[380953030,1755912703500,-400.0,0.00014794,2]
[380953031,1755912703509,-400.0,0.00014794,2]
[380953032,1755912703519,-747.8,0.00014794,2]
[380953033,1755912703528,-400.0,0.00014794,2]
[380953034,1755912703537,-400.0,0.00014794,2]
[380953035,1755912703546,-433.94,0.00014794,2]
[380953036,1755912703556,-400.0,0.00014794,2]
[380953037,1755912703565,-400.0,0.00014794,2]
[380953038,1755912703574,-151.0,0.00014794,2]
[380953039,1755912703583,-400.0,0.00014794,2]
[380953040,1755912703592,-472.48,0.00014794,2]
[380953041,1755912703601,-1000.0,0.00014794,2]
[380953042,1755912703611,-151.0,0.00014794,2]
[380953043,1755912703620,-400.0,0.00014794,2]
[380953044,1755912703629,-400.0,0.00014794,2]
[380953045,1755912703638,-855.010025,0.00014794,2]
[380953046,1755912703647,-400.0,0.00014794,2]
[380953047,1755912703657,-400.0,0.00014794,2]
[380953048,1755912703666,-400.0,0.00014794,2]
[380953049,1755912703675,-400.0,0.00014794,2]
[380953050,1755912703684,-151.0,0.00014794,2]
[380953051,1755912703698,-151.0,0.00014794,2]
[380953052,1755912703707,-631.75,0.00014794,2]
[380953053,1755912703716,-151.0,0.00014794,2]
[380953054,1755912703726,-151.0,0.00014794,2]
[380953055,1755912703735,-400.0,0.00014794,2]
[380953056,1755912703744,-400.0,0.00014794,2]
[380953057,1755912703753,-400.0,0.00014794,2]
[380953058,1755912703763,-151.0,0.00014794,2]
[380953059,1755912703772,-479.25,0.00014794,2]
[380953060,1755912703782,-400.0,0.00014794,2]
[380953061,1755912703791,-151.0,0.00014794,2]
[380953062,1755912703800,-737.35,0.00014794,2]
[380953063,1755912703809,-473.06,0.00014794,2]
[380953064,1755912703818,-400.0,0.00014794,2]
[380953065,1755912703828,-400.0,0.00014794,2]
[380953066,1755912703837,-464.53,0.00014794,2]
[380953067,1755912703847,-400.0,0.00014794,2]
[380953068,1755912703856,-400.0,0.00014794,2]
[380953069,1755912703867,-605.41,0.00014794,2]
[380953070,1755912703876,-451.38,0.00014794,2]
[380953071,1755912703886,-763.68,0.00014794,2]
[380953072,1755912703895,-400.0,0.00014794,2]
[380953073,1755912703904,-525.91685485,0.00014794,2]
[380953074,1755912703914,-400.0,0.00014794,2]
[380953075,1755912703923,-400.0,0.00014794,2]
[380953076,1755912703932,-400.0,0.00014794,2]
[380953077,1755912703944,-400.0,0.00014794,2]
[380953078,1755912703954,-400.0,0.00014794,2]
[380953079,1755912703963,-437.52,0.00014794,2]
[380953080,1755912703972,-496.31,0.00014794,2]
[380953081,1755912703982,-1076.1,0.00014794,2]
[380953082,1755912703992,-400.0,0.00014794,2]
[380953083,1755912704001,-151.0,0.00014794,2]
[380953084,1755912704010,-400.0,0.00014794,2]
[380953085,1755912704020,-400.0,0.00014794,2]
[380953086,1755912704030,-517.63,0.00014794,2]
[380953087,1755912704039,-400.0,0.00014794,2]
[380953088,1755912704048,-531.82,0.00014794,2]
[380953089,1755912704058,-400.0,0.00014794,2]
[380953090,1755912704067,-538.24,0.00014794,2]
[380953091,1755912704077,-400.0,0.00014794,2]
[380953092,1755912704086,-599.57,0.00014794,2]
[380953093,1755912704096,-492.21834953,0.00014794,2]
[380953094,1755912704105,-400.0,0.00014794,2]
[380953095,1755912704114,-578.64,0.00014794,2]
[380953096,1755912704124,-481.87,0.00014794,2]
[380953097,1755912704133,-400.0,0.00014794,2]
[380953098,1755912704143,-876.45,0.00014794,2]
[380953099,1755912704153,-400.0,0.00014794,2]
[380953100,1755912704163,-596.46,0.00014794,2]
[380953101,1755912704173,-151.0,0.00014794,2]
[380953102,1755912704182,-151.0,0.00014794,2]
[380953103,1755912704193,-151.0,0.00014794,2]
[380953104,1755912704203,-400.0,0.00014794,2]
[380953105,1755912704213,-151.0,0.00014794,2]
[380953106,1755912704222,-750.69,0.00014794,2]
[380953107,1755912704232,-400.0,0.00014794,2]
[380953108,1755912704241,-483.91,0.00014794,2]
[380953109,1755912704252,-151.0,0.00014794,2]
[380953110,1755912704261,-400.0,0.00014794,2]
[380953111,1755912704271,-429.94,0.00014794,2]
[380953112,1755912704281,-2560.03,0.00014794,2]
[380953113,1755912704291,-151.0,0.00014794,2]
[380953114,1755912704300,-400.0,0.00014794,2]
[380953115,1755912704310,-400.0,0.00014794,2]
[380953116,1755912704319,-583.44,0.00014794,2]
[380953117,1755912704329,-511.98,0.00014794,2]
[380953118,1755912704339,-412.65,0.00014794,2]
[380953119,1755912704349,-322.0046332,0.00014794,2]
[380953120,1755912704358,-400.0,0.00014794,2]
[380953121,1755912704370,-183.79807257,0.00014794,2]
[380953122,1755912704380,-165.091098,0.00014794,2]
[380953123,1755912704390,-789.4,0.00014794,2]
[380953124,1755912704400,-714.55,0.00014794,2]
[380953125,1755912704411,-466.47,0.00014794,2]
[380953126,1755912704421,-400.0,0.00014794,2]
[380953127,1755912704431,-400.0,0.00014794,2]
[380953128,1755912704443,-151.0,0.00014794,2]
[380953129,1755912704453,-483.0,0.00014794,2]
[380953130,1755912704463,-638.96,0.00014794,2]
[380953131,1755912704473,-411.07,0.00014794,2]
[380953132,1755912704483,-626.45,0.00014794,2]
[380953133,1755912704493,-400.0,0.00014794,2]
[380953134,1755912704503,-151.0,0.00014794,2]
[380953135,1755912704513,-151.0,0.00014794,2]
[380953136,1755912704523,-459.86,0.00014794,2]
[380953137,1755912704533,-220.00998,0.00014794,2]
[380953138,1755912704542,-400.0,0.00014794,2]
[380953139,1755912704552,-151.0,0.00014794,2]
[380953140,1755912704562,-7170.55,0.00014794,2]
[380953141,1755912704572,-590.56,0.00014794,2]
[380953142,1755912704582,-400.0,0.00014794,2]
[380953143,1755912704592,-489.74,0.00014794,2]
[380953144,1755912704602,-400.0,0.00014794,2]
[380953145,1755912704612,-192.358073,0.00014794,2]
[380953146,1755912704622,-798.6,0.00014794,2]
[380953147,1755912704631,-151.0,0.00014794,2]
[380953148,1755912704641,-538.01,0.00014794,2]
[380953149,1755912704651,-414.4,0.00014794,2]
[380953150,1755912704662,-192.358073,0.00014794,2]
[380953151,1755912704672,-755.36,0.00014794,2]
[380953152,1755912704682,-400.0,0.00014794,2]
[380953153,1755912704693,-2114.53,0.00014794,2]
[380953154,1755912704702,-192.358073,0.00014794,2]
[380953155,1755912704714,-556.35,0.00014794,2]
[380953156,1755912704724,-400.0,0.00014794,2]
[380953157,1755912704735,-522.88,0.00014794,2]
[380953158,1755912704745,-192.358073,0.00014794,2]
[380953159,1755912704754,-400.0,0.00014794,2]
[380953160,1755912704764,-152.046197,0.00014794,2]
[380953161,1755912704774,-400.0,0.00014794,2]
[380953162,1755912704784,-400.0,0.00014794,2]
[380953163,1755912704793,-400.0,0.00014794,2]
[380953164,1755912704803,-2594.59,0.00014794,2]
[380953165,1755912704813,-178.034059,0.00014794,2]
[380953166,1755912704822,-400.0,0.00014794,2]
[380953167,1755912704832,-151.0,0.00014794,2]
[380953168,1755912704842,-446.5,0.00014794,2]
[380953169,1755912704851,-400.0,0.00014794,2]
[380953170,1755912704861,-178.034059,0.00014794,2]
[380953171,1755912704871,-529.92,0.00014794,2]
[380953172,1755912704881,-178.034059,0.00014794,2]
[380953173,1755912704891,-705.67,0.00014794,2]
[380953174,1755912704901,-896.87,0.00014794,2]
[380953175,1755912704911,-178.034059,0.00014794,2]
[380953176,1755912704921,-1094.77,0.00014794,2]
[380953177,1755912704931,-400.0,0.00014794,2]
[380953178,1755912704942,-741.74,0.00014794,2]
[380953179,1755912704952,-400.0,0.00014794,2]
[380953180,1755912704962,-869.76,0.00014794,2]
[380953181,1755912704972,-418.69,0.00014794,2]
[380953182,1755912704982,-400.0,0.00014794,2]
[380953183,1755912704993,-400.0,0.00014794,2]
[380953184,1755912705003,-437.77,0.00014794,2]
[380953185,1755912705013,-562.13,0.00014794,2]
[380953186,1755912705024,-1048.91,0.00014794,2]
[380953187,1755912705036,-541.27,0.00014794,2]
[380953188,1755912705047,-723.99,0.00014794,2]
[380953189,1755912705058,-400.0,0.00014794,2]
[380953190,1755912705069,-400.0,0.00014794,2]
[380953191,1755912705079,-530.85,0.00014794,2]
[380953192,1755912705089,-614.11,0.00014794,2]
[380953193,1755912705099,-4903.23,0.00014794,2]
[380953194,1755912705110,-400.0,0.00014794,2]
[380953195,1755912705121,-963.36,0.00014794,2]
[380953196,1755912705131,-685.08,0.00014794,2]
[380953197,1755912705141,-400.0,0.00014794,2]
[380953198,1755912705155,-508.77,0.00014794,2]
[380953199,1755912705165,-956.53,0.00014794,2]
[380953200,1755912705175,-400.0,0.00014794,2]
[380953201,1755912705185,-400.0,0.00014794,2]
[380953202,1755912705194,-690.94,0.00014794,2]
[380953203,1755912705204,-151.0,0.00014794,2]
[380953204,1755912705214,-400.0,0.00014794,2]
[380953205,1755912705224,-781.78,0.00014794,2]
[380953206,1755912705234,-151.0,0.00014794,2]
[380953207,1755912705244,-516.0,0.00014794,2]
[380953208,1755912705254,-151.0,0.00014794,2]
[380953209,1755912705264,-400.0,0.00014794,2]
[380953210,1755912705274,-407.82,0.00014794,2]
[380953211,1755912705284,-2566.25,0.00014794,2]
[380953212,1755912705294,-400.0,0.00014794,2]
[380953213,1755912705303,-573.49,0.00014794,2]
[380953214,1755912705314,-400.0,0.00014794,2]
[380953215,1755912705324,-400.0,0.00014794,2]
[380953216,1755912705334,-400.0,0.00014794,2]
[380953217,1755912705344,-548.91,0.00014794,2]
[380953218,1755912705354,-400.0,0.00014794,2]
[380953219,1755912705366,-1155.0,0.00014794,2]
[380953220,1755912705378,-468.96,0.00014794,2]
[380953221,1755912705388,-947.84,0.00014794,2]
[380953222,1755912705398,-659.68,0.00014794,2]
[380953223,1755912705408,-400.0,0.00014794,2]
[380953224,1755912705418,-1053.52,0.00014794,2]
[380953225,1755912705427,-151.0,0.00014794,2]
[380953226,1755912705438,-691.7,0.00014794,2]
[380953227,1755912705448,-719.87,0.00014794,2]
[380953228,1755912705459,-557.81,0.00014794,2]
[380953229,1755912705469,-1327.17,0.00014794,2]
[380953230,1755912705479,-621.05,0.00014794,2]
[380953231,1755912705489,-151.0,0.00014794,2]
[380953232,1755912705499,-400.0,0.00014794,2]
[380953233,1755912705510,-532.88,0.00014794,2]
[380953234,1755912705520,-400.0,0.00014794,2]
[380953235,1755912705530,-811.77,0.00014794,2]
[380953236,1755912705540,-482.24,0.00014794,2]
[380953237,1755912705550,-448.05,0.00014794,2]
[380953238,1755912705560,-786.36,0.00014794,2]
[380953239,1755912705570,-825.64,0.00014794,2]
[380953240,1755912705581,-400.0,0.00014794,2]
[380953241,1755912705591,-508.4,0.00014794,2]
[380953242,1755912705601,-400.0,0.00014794,2]
[380953243,1755912705612,-400.0,0.00014794,2]
[380953244,1755912705622,-400.0,0.00014794,2]
[380953245,1755912705632,-1160.25,0.00014794,2]
[380953246,1755912705642,-471.12,0.00014794,2]
[380953247,1755912705652,-478.08,0.00014794,2]
[380953248,1755912705662,-522.09,0.00014794,2]
[380953249,1755912705671,-400.0,0.00014794,2]
[380953250,1755912705680,-1658.24,0.00014794,2]
[380953251,1755912705690,-400.0,0.00014794,2]
[380953252,1755912705700,-876.0,0.00014794,2]
[380953253,1755912705710,-413.45,0.00014794,2]
[380953254,1755912705720,-400.01,0.00014794,2]
[380953255,1755912705730,-928.99,0.00014794,2]
[380953256,1755912705739,-535.34,0.00014794,2]
[380953257,1755912705749,-1082.57,0.00014794,2]
[380953258,1755912705759,-400.0,0.00014794,2]
[380953259,1755912705769,-599.68,0.00014794,2]
[380953260,1755912705779,-581.91,0.00014794,2]
[380953261,1755912705789,-576.13,0.00014794,2]
[380953262,1755912705799,-808.82,0.00014794,2]
[380953263,1755912705809,-677.9,0.00014794,2]
[380953264,1755912705820,-704.93,0.00014794,2]
[380953265,1755912705830,-629.77,0.00014794,2]
[380953266,1755912705839,-1628.12,0.00014794,2]